bitfinex/quotes_SOLUSD_20251115
["timestamp","ask_amount","ask_price","bid_price","bid_amount"]
[1763185452952,107.73619384,142.99,142.96,0.7]
[1763185453468,104.3,142.99,142.96,3.44619384]
[1763185453670,104.3,142.99,142.97,0.72]
[1763185458551,22.6512,143.0,142.97,3.46619384]
[1763185458958,22.6512,143.0,142.98,0.72]
[1763185459974,22.6512,143.0,142.98,3.46619384]
[1763185460470,22.6512,143.0,142.99,0.72]
[1763185464381,107.10337807,143.03,142.99,3.46619384]
[1763185464577,104.3,143.03,142.99,3.46619384]
[1763185464877,105.0,143.03,143.0,3.46619384]
[1763185466284,105.0,143.03,143.0,0.72]
[1763185468980,107.74619384,143.03,143.0,0.72]
[1763185471364,104.3,143.03,143.0,3.46619384]
[1763185471868,104.3,143.03,143.01,3.46619384]
[1763185472260,104.3,143.03,143.02,3.46619384]
[1763185472488,0.2,143.04,143.02,3.46619384]
[1763185472777,0.2,143.04,143.03,3.46619384]
[1763185475083,0.2,143.04,143.01,0.72]
[1763185475273,0.2,143.04,143.02,2.74619384]
[1763185475472,0.2,143.04,143.02,0.72]
[1763185476458,0.7,143.03,142.99,0.72]
[1763185476676,7.09238768,143.03,142.99,0.72]
[1763185480680,3.44619384,143.02,142.98,0.72]
[1763185480978,3.44619384,143.02,142.99,0.72]
[1763185482992,0.7,143.02,142.99,0.72]
[1763185483490,2.80318161,143.03,143.0,2.74619384]
[1763185483710,104.5,143.04,143.02,2.74619384]
[1763185483888,0.2,143.04,143.02,2.74619384]
[1763185484199,0.2,143.04,143.03,0.67]
[1763185484592,0.2,143.04,143.03,3.41619384]
[1763185500490,0.2,143.04,143.03,28.81358768]
[1763185500906,0.2,143.04,143.03,31.6151986]
[1763185501404,0.2,143.04,143.03,38.60673883]
[1763185501607,0.2,143.04,143.03,31.6151986]
[1763185501788,0.2,143.04,143.03,28.81358768]
[1763185506008,0.2,143.04,143.03,3.41619384]
[1763185509619,0.2,143.04,143.0,28.19939727]
[1763185509799,0.2,143.04,143.03,2.74619384]
[1763185510412,0.2,143.04,143.03,3.41619384]
[1763185513016,0.2,143.04,143.03,2.42531643]
[1763185515102,0.2,143.04,143.03,2.47531643]
[1763185515704,0.2,143.04,143.0,29.67246572]
[1763185515705,0.86,143.04,142.96,7.02126572]
[1763185515934,0.66,143.03,143.0,1.75531643]
[1763185516417,0.66,143.03,143.01,1.75531643]
[1763185518309,0.66,143.03,142.99,0.72]
[1763185518521,0.66,143.03,142.96,25.45398877]
[1763185518522,0.66,143.03,142.97,0.72]
[1763185518697,0.66,143.03,142.99,1.75531643]
[1763185518900,2.41531643,143.03,142.97,0.72]
[1763185519096,1.75531643,143.02,142.97,0.72]
[1763185519301,24.40651643,143.01,142.97,1.75531643]
[1763185519615,25.06651643,143.01,142.97,1.75531643]
[1763185519925,0.66,143.0,142.97,1.75531643]
[1763185520108,0.66,143.0,142.97,2.47531643]
[1763185520309,0.66,143.0,142.98,1.75531643]
[1763185522619,0.66,143.0,142.96,1.75531643]
[1763185522926,0.66,143.0,142.97,1.75531643]
[1763185523130,0.66,143.0,142.96,1.75531643]
[1763185523633,2.41531643,143.0,142.96,1.75531643]
[1763185524020,0.66,142.99,142.96,1.75531643]
[1763185524902,1.897478,142.97,142.93,1.75531643]
[1763185525204,1.75531643,142.94,142.9,1.75531643]
[1763185525612,0.66,142.97,142.93,1.75531643]
[1763185525813,23.3112,142.97,142.95,1.75531643]
[1763185529221,1.75531643,142.99,142.96,1.75531643]
[1763185529222,0.66,142.99,142.96,1.75531643]
[1763185529423,104.96,143.0,142.97,1.75531643]
[1763185529930,0.66,142.99,142.97,1.75531643]
[1763185530316,0.14216157,142.97,142.91,0.72]
[1763185530627,24.40651643,142.96,142.92,1.75531643]
[1763185530836,0.66,142.95,142.92,2.47531643]
[1763185531330,0.66,142.95,142.92,1.75531643]
[1763185534835,0.66,142.95,142.88,29.67246572]
[1763185534836,22.6512,142.94,142.9,1.75531643]
[1763185535137,24.40651643,142.94,142.89,2.47531643]
[1763185535337,0.66,142.93,142.89,2.47531643]
[1763185535638,2.41531643,142.93,142.89,0.72]
[1763185535839,2.41531643,142.93,142.89,2.47531643]
[1763185536040,0.66,142.92,142.89,2.47531643]
[1763185537432,0.66,142.92,142.9,1.75531643]
[1763185537629,24.40651643,142.94,142.9,2.47531643]
[1763185537630,23.3112,142.94,142.9,2.47531643]
[1763185538441,23.3112,142.94,142.91,2.47531643]
[1763185538442,126.9512,142.94,142.91,2.47531643]
[1763185538941,127.6112,142.94,142.91,2.47531643]
[1763185541043,104.3,142.94,142.92,2.47531643]
[1763185543430,129.42651643,142.97,142.93,2.42531643]
[1763185543638,127.6712,142.97,142.93,2.42531643]
[1763185543943,0.72,142.96,142.93,1.75531643]
[1763185547039,0.86216157,142.96,142.87,22.7512]
[1763185547340,2.617478,142.96,142.92,1.75531643]
[1763185547647,0.72,142.95,142.92,1.75531643]
[1763185548155,0.72,142.95,142.92,2.42531643]
[1763185552327,0.14216157,142.96,142.93,2.42531643]
[1763185552549,127.6712,142.97,142.94,1.75531643]
[1763185552740,127.6712,142.97,142.94,2.42531643]
[1763185553554,0.72,142.96,142.93,2.42531643]
[1763185553928,105.02,143.0,142.95,1.75531643]
[1763185554135,105.02,143.0,142.96,2.42531643]
[1763185554754,0.72,142.99,142.96,2.42531643]
[1763185556932,0.72,142.99,142.96,0.67]
[1763185559058,0.72,142.99,142.96,2.42531643]
[1763185561362,0.72,142.99,142.96,0.67]
[1763185562054,0.72,142.99,142.96,2.42531643]
[1763185562235,104.3,143.0,142.98,1.75531643]
[1763185562550,0.2,143.04,142.99,3.51063286]
[1763185562736,0.2,143.04,143.03,1.75531643]
[1763185563253,0.2,143.04,143.03,2.42531643]
[1763185570542,0.2,143.04,143.03,4.18063286]
[1763185572241,0.2,143.04,143.03,9.44658215]
[1763185572841,0.2,143.04,143.03,6.15255458]
[1763185580666,0.2,143.05,143.03,23.07508407]
[1763185581007,0.2,143.06,143.05,22.6512]
[1763185581196,0.2,143.06,143.05,25.39247729]
[1763185581478,0.2,143.09,143.08,5.48255458]
[1763185581959,0.2,143.09,143.08,6.15255458]
[1763185582573,0.2,143.11,143.09,9.93098926]
[1763185582781,0.2,143.12,143.1,28.80375458]
[1763185582967,0.2,143.12,143.11,2.74127729]
[1763185583160,0.2,143.12,143.11,3.41127729]
[1763185583567,0.2,143.12,143.11,13.20010498]
[1763185584762,0.2,143.14,143.12,9.78882769]
[1763185584957,0.2,143.14,143.12,16.08354384]
[1763185585175,0.2,143.15,143.14,32.44002769]
[1763185585488,0.2,143.15,143.14,35.18130498]
[1763185585671,0.2,143.15,143.14,35.85130498]
[1763185586685,0.2,143.15,143.14,45.57874965]
[1763185586858,0.2,143.15,143.14,38.59258227]
[1763185589292,0.2,143.18,143.14,45.57874965]
[1763185589467,0.2,143.18,143.16,2.74127729]
[1763185589862,0.2,143.18,143.16,3.41127729]
[1763185590082,0.2,143.18,143.16,15.94138227]
[1763185591163,0.2,143.18,143.16,10.45882769]
[1763185591370,0.2,143.18,143.16,15.94138227]
[1763185592270,0.2,143.18,143.16,22.92657366]
[1763185593268,0.2,143.18,143.16,15.94138227]
[1763185593592,0.2,143.18,143.16,22.92657366]
[1763185593993,0.2,143.18,143.17,9.78882769]
[1763185594172,0.2,143.2,143.19,32.44002769]
[1763185594367,0.2,143.2,143.19,38.59258227]
[1763185595690,0.2,143.2,143.19,28.80375458]
[1763185596771,0.9,143.2,143.19,28.13375458]
[1763185596983,0.2,143.2,143.19,25.39247729]
[1763185597790,0.2,143.2,143.19,28.13375458]
[1763185598779,0.9,143.2,143.19,2.74127729]
[1763185600768,0.2,143.2,143.19,5.48255458]
[1763185601478,0.2,143.2,143.19,6.15255458]
[1763185601781,0.9,143.2,143.19,2.74127729]
[1763185601982,0.9,143.2,143.16,26.06247729]
[1763185602183,0.9,143.2,143.19,2.74127729]
[1763185605899,0.2,143.2,143.19,2.74127729]
[1763185607085,0.89,143.2,143.14,0.71]
[1763185607386,2.74127729,143.22,143.17,2.74127729]
[1763185608199,2.88343886,143.2,143.11,0.71]
[1763185608420,2.88343886,143.2,143.15,2.74127729]
[1763185609291,0.25,143.19,143.15,2.74127729]
[1763185611317,2.99127729,143.19,143.13,0.71]
[1763185611491,2.99127729,143.19,143.15,2.74127729]
[1763185611687,0.25,143.18,143.15,2.74127729]
[1763185612380,0.25,143.18,143.14,2.74127729]
[1763185612581,0.25,143.18,143.15,2.74127729]
[1763185616008,0.25,143.18,143.13,0.71]
[1763185616206,0.25,143.18,143.15,2.74127729]
[1763185616794,0.25,143.18,143.16,2.74127729]
[1763185618017,104.3,143.19,143.17,2.74127729]
[1763185618213,0.25,143.18,143.17,2.74127729]
[1763185618408,0.25,143.18,143.16,2.74127729]
[1763185618592,0.25,143.18,143.15,2.74127729]
[1763185619321,104.55,143.19,143.16,2.74127729]
[1763185619515,104.55,143.19,143.17,2.74127729]
[1763185620515,104.55,143.19,143.16,2.74127729]
[1763185624203,104.55,143.19,143.15,0.71]
[1763185624508,104.3,143.19,143.17,2.74127729]
[1763185626034,104.3,143.19,143.18,2.74127729]
[1763185626800,104.3,143.27,143.18,3.45127729]
[1763185627000,0.25,143.25,143.21,2.74127729]
[1763185627619,22.9012,143.25,143.21,2.74127729]
[1763185627818,0.25,143.24,143.22,2.74127729]
[1763185628227,0.25,143.27,143.23,3.45127729]
[1763185628395,2.74127729,143.26,143.17,9.78882769]
[1763185628603,2.74127729,143.26,143.21,2.74127729]
[1763185628809,0.25,143.26,143.23,2.74127729]
[1763185629008,2.74127729,143.27,143.23,2.74127729]
[1763185629220,0.25,143.25,143.23,2.74127729]
[1763185630224,0.25,143.25,143.22,2.74127729]
[1763185631317,0.25,143.25,143.21,3.45127729]
[1763185631901,2.99127729,143.28,143.23,2.74127729]
[1763185632314,2.99127729,143.28,143.24,0.71]
[1763185632507,2.99127729,143.28,143.24,3.45127729]
[1763185632710,0.25,143.28,143.24,3.45127729]
[1763185634025,2.99127729,143.28,143.24,3.45127729]
[1763185634910,2.00035487,143.28,143.24,2.46035487]
[1763185635110,1.75035487,143.28,143.25,0.65]
[1763185635922,2.00035487,143.28,143.24,2.40035487]
[1763185637204,1.75035487,143.28,143.25,0.65]
[1763185637407,2.00035487,143.28,143.24,2.40035487]
[1763185637931,1.75035487,143.27,143.24,0.65]
[1763185638110,1.75035487,143.26,143.21,0.65]
[1763185638310,0.25,143.25,143.22,1.75035487]
[1763185638707,2.00035487,143.27,143.22,1.75035487]
[1763185638906,2.00035487,143.27,143.23,2.40035487]
[1763185639733,2.00035487,143.27,143.23,0.65]
[1763185640114,2.00035487,143.27,143.23,2.40035487]
[1763185640523,1.75035487,143.28,143.24,2.40035487]
[1763185641054,1.75035487,143.28,143.25,0.65]
[1763185641231,107.05035587,143.29,143.25,2.40035487]
[1763185641530,107.05035587,143.29,143.26,1.75035487]
[1763185641531,105.300001,143.29,143.26,1.75035487]
[1763185641713,105.300001,143.29,143.26,2.40035487]
[1763185643518,105.300001,143.29,143.25,0.65]
[1763185643519,105.550001,143.29,143.25,0.65]
[1763185644029,105.300001,143.29,143.25,0.65]
[1763185644234,105.300001,143.29,143.27,1.75035487]
[1763185644418,105.300001,143.29,143.24,29.65261948]
[1763185644419,1.000001,143.29,143.28,0.65]
[1763185644611,1.000001,143.29,143.28,1.75035487]
[1763185644931,1.000001,143.29,143.28,2.40035487]
[1763185645232,1.000001,143.29,143.28,1.75035487]
[1763185645612,1.250001,143.29,143.25,0.65]
[1763185645812,1.250001,143.29,143.26,1.75035487]
[1763185646827,0.25,143.28,143.26,1.75035487]
[1763185647612,0.25,143.28,143.25,1.75035487]
[1763185647822,106.30035487,143.28,143.24,1.75035487]
[1763185648224,0.25,143.27,143.24,1.75035487]
[1763185652138,0.25,143.27,143.21,0.65]
[1763185652139,1.75035487,143.26,143.21,0.65]
[1763185652434,1.75035487,143.26,143.21,1.75035487]
[1763185652629,2.00035487,143.25,143.2,2.40035487]
[1763185653136,0.25,143.24,143.2,2.40035487]
[1763185653714,0.25,143.24,143.21,1.75035487]
[1763185654341,0.25,143.24,143.22,1.75035487]
[1763185654517,0.25,143.25,143.22,1.75035487]
[1763185655430,0.25,143.25,143.21,0.65]
[1763185655731,0.25,143.25,143.22,1.75035487]
[1763185655934,1.75035487,143.26,143.22,1.75035487]
[1763185656231,128.70155487,143.28,143.23,1.75035487]
[1763185656442,0.25,143.26,143.23,1.75035487]
[1763185656735,2.00035487,143.26,143.21,1.75035487]
[1763185656926,2.00035487,143.26,143.22,1.75035487]
[1763185657115,2.00035487,143.26,143.22,2.40035487]
[1763185658025,0.25,143.26,143.22,2.40035487]
[1763185658546,104.55,143.26,143.22,2.40035487]
[1763185659140,104.55,143.26,143.23,1.75035487]
[1763185659938,104.3,143.26,143.23,2.40035487]
[1763185661342,104.55,143.26,143.22,2.40035487]
[1763185662622,104.55,143.26,143.23,1.75035487]
[1763185663225,104.55,143.26,143.22,2.40035487]
[1763185664524,106.30035487,143.26,143.22,2.40035487]
[1763185665144,104.55,143.26,143.22,2.40035487]
[1763185667042,104.55,143.26,143.17,29.63580394]
[1763185667241,104.55,143.26,143.22,1.75035487]
[1763185667442,104.55,143.26,143.21,1.75035487]
[1763185668126,0.68,143.25,143.21,1.75035487]
[1763185669246,0.68,143.25,143.22,0.71]
[1763185669855,2.43035487,143.25,143.19,1.75035487]
[1763185670034,2.43035487,143.25,143.17,1.75035487]
[1763185670035,1.75035487,143.22,143.17,1.75035487]
[1763185670237,0.68,143.21,143.17,1.75035487]
[1763185671030,2.43035487,143.21,143.17,1.75035487]
[1763185671241,0.68,143.21,143.18,1.75035487]
[1763185671440,0.68,143.2,143.18,1.75035487]
[1763185671647,0.68,143.22,143.18,2.46035487]
[1763185672038,0.68,143.22,143.19,1.75035487]
[1763185672555,2.43035487,143.22,143.17,2.46035487]
[1763185672946,0.68,143.21,143.17,0.71]
[1763185673148,0.68,143.21,143.17,2.46035487]
[1763185675351,0.68,143.21,143.17,0.71]
[1763185675548,0.68,143.21,143.18,1.75035487]
[1763185675749,0.68,143.21,143.17,0.71]
[1763185675750,2.43035487,143.23,143.19,1.75035487]
[1763185675930,0.68,143.22,143.19,2.46035487]
[1763185676347,0.68,143.22,143.19,1.75035487]
[1763185677347,0.68,143.22,143.18,2.46035487]
[1763185677755,2.43035487,143.23,143.19,0.71]
[1763185677963,2.43035487,143.23,143.19,2.46035487]
[1763185679252,0.68,143.22,143.19,2.46035487]
[1763185679459,0.68,143.22,143.19,1.75035487]
[1763185679756,0.68,143.22,143.19,2.46035487]
[1763185679956,0.68,143.22,143.19,0.71]
[1763185680345,1.75035487,143.23,143.19,0.71]
[1763185680547,1.75035487,143.23,143.19,2.46035487]
[1763185680548,2.43035487,143.23,143.19,2.46035487]
[1763185680741,104.3,143.24,143.2,1.75035487]
[1763185680947,24.40155487,143.25,143.17,9.78882769]
[1763185681155,1.75035487,143.22,143.17,1.75035487]
[1763185681335,0.68,143.21,143.18,0.71]
[1763185681539,2.43035487,143.21,143.14,23.3612]
[1763185681751,0.68,143.2,143.16,1.75035487]
[1763185681948,1.75035487,143.19,143.14,0.71]
[1763185682154,23.3312,143.2,143.14,0.71]
[1763185682155,1.75035487,143.18,143.14,0.71]
[1763185682340,1.75035487,143.18,143.14,2.46035487]
[1763185682543,0.68,143.18,143.14,2.46035487]
[1763185682741,0.68,143.18,143.15,2.46035487]
[1763185682943,23.3312,143.19,143.16,1.75035487]
[1763185683159,0.68,143.19,143.16,2.46035487]
[1763185683352,2.43035487,143.21,143.17,2.46035487]
[1763185683658,2.43035487,143.21,143.13,0.71]
[1763185683865,0.68,143.2,143.16,1.75035487]
[1763185684245,0.68,143.2,143.16,2.46035487]
[1763185685138,1.75035487,143.21,143.16,2.46035487]
[1763185685358,1.75035487,143.2,143.16,2.46035487]
[1763185685546,1.75035487,143.2,143.15,2.46035487]
[1763185686161,1.75035487,143.2,143.16,0.71]
[1763185686361,86.73035487,143.22,143.16,2.46035487]
[1763185686553,1.89251644,143.21,143.16,2.46035487]
[1763185686951,1.75035487,143.21,143.17,2.46035487]
[1763185687355,0.22,143.21,143.17,2.46035487]
[1763185687546,1.97035487,143.21,143.17,2.46035487]
[1763185690553,1.97035487,143.21,143.09,18.79024716]
[1763185690554,86.73035487,143.27,143.2,3.50070974]
[1763185690866,0.14216157,143.26,143.23,1.75035487]
[1763185691073,88.48070974,143.27,143.23,1.75035487]
[1763185691258,22.6512,143.26,143.23,2.47035487]
[1763185691459,22.6512,143.26,143.23,0.72]
[1763185692048,22.6512,143.25,143.24,0.72]
[1763185695371,1.000001,143.29,143.24,0.72]
[1763185695564,8.28,143.28,143.26,2.73574699]
[1763185696055,8.28,143.28,143.26,3.42574699]
[1763185696250,8.28,143.28,143.24,2.73574699]
[1763185696251,8.28,143.28,143.24,0.69]
[1763185696450,8.28,143.28,143.24,3.42574699]
[1763185697070,8.28,143.28,143.25,0.69]
[1763185697459,11.23574699,143.28,143.24,3.42574699]
[1763185697660,11.23574699,143.28,143.24,0.69]
[1763185697865,11.01574699,143.28,143.24,0.69]
[1763185698460,11.01574699,143.28,143.24,3.42574699]
[1763185698772,8.28,143.28,143.25,2.73574699]
[1763185699072,8.28,143.28,143.25,3.42574699]
[1763185699449,8.28,143.28,143.26,0.69]
[1763185699658,8.28,143.28,143.26,3.42574699]
[1763185700257,8.28,143.27,143.26,3.42574699]
[1763185700460,8.28,143.27,143.26,2.73574699]
[1763185700864,8.28,143.27,143.25,3.42574699]
[1763185702885,86.73035487,143.28,143.25,3.42574699]
[1763185703071,86.73035487,143.28,143.21,22.6512]
[1763185703072,8.28,143.26,143.21,22.6512]
[1763185703389,8.28,143.26,143.23,2.73574699]
[1763185703866,8.28,143.26,143.23,3.42574699]
[1763185705381,8.5,143.26,143.23,2.73574699]
[1763185705568,8.5,143.26,143.22,0.69]
[1763185705569,11.23574699,143.26,143.22,3.42574699]
[1763185706281,0.22,143.25,143.21,2.73574699]
[1763185706469,8.28,143.24,143.21,2.73574699]
[1763185706664,8.28,143.24,143.21,3.42574699]
[1763185710776,8.26,143.23,143.21,3.42574699]
[1763185711284,8.26,143.23,143.21,0.69]
[1763185711495,8.26,143.23,143.21,3.42574699]
[1763185712799,8.26,143.23,143.2,2.73574699]
[1763185713303,8.26,143.23,143.2,3.42574699]
[1763185713588,8.26,143.23,143.2,2.73574699]
[1763185713796,8.26,143.23,143.21,0.69]
[1763185714581,8.26,143.23,143.2,2.73574699]
[1763185714896,8.26,143.23,143.2,3.42574699]
[1763185717192,8.26,143.23,143.21,2.73574699]
[1763185717389,8.26,143.23,143.21,3.42574699]
[1763185721594,8.26,143.23,143.21,0.69]
[1763185722290,8.26,143.23,143.21,3.42574699]
[1763185722688,8.26,143.23,143.22,3.42574699]
[1763185724097,8.26,143.23,143.22,0.69]
[1763185724396,86.73035487,143.24,143.22,0.69]
[1763185724579,86.73035487,143.24,143.23,2.73574699]
[1763185724784,94.99035487,143.24,143.23,3.42574699]
[1763185728305,86.73035487,143.24,143.23,3.42574699]
[1763185728607,94.99035487,143.24,143.23,3.42574699]
[1763185731804,8.26,143.24,143.23,3.42574699]
[1763185734500,109.38155487,143.27,143.23,3.42574699]
[1763185734802,8.26,143.26,143.24,3.42574699]
[1763185738619,8.26,143.26,143.25,0.69]
[1763185738809,8.26,143.26,143.24,3.42574699]
[1763185739006,8.26,143.26,143.24,0.69]
[1763185739599,8.26,143.26,143.24,3.42574699]
[1763185741516,109.38155487,143.27,143.25,0.69]
[1763185741690,8.26,143.26,143.24,3.42574699]
[1763185743108,86.73035487,143.27,143.25,3.42574699]
[1763185743316,8.26,143.26,143.24,2.73574699]
[1763185744015,86.73035487,143.27,143.25,0.69]
[1763185744210,8.26,143.26,143.25,0.69]
[1763185744611,8.26,143.26,143.25,3.42574699]
[1763185746521,86.73035487,143.27,143.25,3.42574699]
[1763185746829,86.73035487,143.27,143.26,0.69]
[1763185747000,94.99035487,143.27,143.26,0.69]
[1763185747500,94.99035487,143.27,143.25,2.73574699]
[1763185747702,94.99035487,143.27,143.25,0.69]
[1763185749698,94.99035487,143.27,143.25,3.42574699]
[1763185750912,94.99035487,143.27,143.26,0.7]
[1763185752312,94.99035487,143.27,143.26,3.43574699]
[1763185752700,86.73035487,143.27,143.26,3.43574699]
[1763185752907,94.99035487,143.27,143.26,3.43574699]
[1763185755324,86.73035487,143.27,143.26,3.43574699]
[1763185755503,94.99035487,143.27,143.26,3.43574699]
[1763185755820,86.73035487,143.27,143.26,3.43574699]
[1763185756021,94.99035487,143.27,143.26,3.43574699]
[1763185757012,94.99035487,143.27,143.26,2.44968914]
[1763185758227,8.26,143.27,143.26,2.44968914]
[1763185758639,1.000001,143.29,143.26,4.19937828]
[1763185758939,8.26,143.27,143.25,6.98075709]
[1763185759435,8.26,143.27,143.26,0.66]
[1763185759825,1.000001,143.29,143.26,4.15937828]
[1763185760036,1.000001,143.29,143.28,3.49937828]
[1763185760235,9.260001,143.29,143.28,3.49937828]
[1763185760431,1.000001,143.29,143.28,9.4084457]
[1763185768910,1.000001,143.29,143.28,2.40968914]
[1763185769616,1.000001,143.29,143.28,4.15937828]
[1763185771330,1.000001,143.29,143.25,18.04882769]
[1763185771525,1.000001,143.29,143.28,8.7484457]
[1763185771730,1.000001,143.29,143.28,3.49937828]
[1763185771942,1.000001,143.29,143.28,4.15937828]
[1763185774356,1.000001,143.29,143.28,9.4084457]
[1763185774925,1.000001,143.29,143.28,16.38778685]
[1763185777227,1.000001,143.29,143.28,9.4084457]
[1763185778943,1.000001,143.29,143.28,1.74968914]
[1763185779328,1.220001,143.29,143.28,1.74968914]
[1763185779528,1.220001,143.29,143.27,1.74968914]
[1763185779743,0.22,143.28,143.27,1.74968914]
[1763185781431,0.22,143.28,143.26,1.74968914]
[1763185782050,0.22,143.28,143.25,1.74968914]
[1763185783153,22.6512,143.27,143.24,1.74968914]
[1763185783565,0.22,143.26,143.21,0.72]
[1763185783736,0.22,143.26,143.23,1.74968914]
[1763185783940,24.62088914,143.26,143.22,1.74968914]
[1763185784130,24.40088914,143.24,143.16,7.71875656]
[1763185784335,8.26,143.23,143.2,1.74968914]
[1763185784641,8.48,143.23,143.2,1.74968914]
[1763185784843,0.22,143.22,143.2,1.74968914]
[1763185785564,8.48,143.23,143.2,1.74968914]
[1763185787559,0.22,143.22,143.19,1.74968914]
[1763185787740,0.22,143.22,143.18,1.74968914]
[1763185788468,24.62088914,143.24,143.2,1.74968914]
[1763185788667,22.8712,143.24,143.2,1.74968914]
[1763185788840,0.22,143.23,143.2,1.74968914]
[1763185790361,22.8712,143.24,143.2,2.46968914]
[1763185790861,24.62088914,143.24,143.2,2.46968914]
[1763185791199,22.8712,143.24,143.2,2.46968914]
[1763185792232,0.22,143.23,143.19,1.74968914]
[1763185792459,0.22,143.23,143.19,2.46968914]
[1763185794172,0.22,143.23,143.2,1.74968914]
[1763185796251,22.8712,143.23,143.2,1.74968914]
[1763185799353,22.8712,143.23,143.2,2.46968914]
[1763185800778,22.6512,143.23,143.2,2.46968914]
[1763185802986,86.73035487,143.26,143.22,1.74968914]
[1763185803153,22.6512,143.23,143.16,6.98501461]
[1763185803352,22.6512,143.23,143.2,1.74968914]
[1763185803881,22.6512,143.23,143.2,2.46968914]
[1763185804561,22.6512,143.23,143.21,0.72]
[1763185804964,22.6512,143.23,143.2,1.74968914]
[1763185805270,22.6512,143.23,143.2,2.46968914]
[1763185805871,22.6512,143.23,143.22,1.74968914]
[1763185806257,22.6512,143.23,143.22,2.46968914]
[1763185808086,22.6512,143.23,143.22,1.74968914]
[1763185808277,22.8712,143.23,143.16,6.99875656]
[1763185808479,22.8712,143.23,143.19,2.46968914]
[1763185808688,22.6512,143.23,143.2,2.46968914]
[1763185809365,22.8712,143.23,143.2,2.46968914]
[1763185809562,22.8712,143.23,143.2,1.74968914]
[1763185811378,22.8712,143.23,143.2,2.41968914]
[1763185811571,22.8712,143.22,143.19,1.74968914]
[1763185811777,22.8712,143.22,143.18,2.41968914]
[1763185812279,22.8712,143.22,143.16,6.99875656]
[1763185812280,22.6512,143.22,143.19,2.41968914]
[1763185812476,22.6512,143.22,143.2,1.74968914]
[1763185812688,22.6512,143.22,143.2,2.44968914]
[1763185816899,22.6512,143.22,143.2,3.43650064]
[1763185823583,22.6512,143.22,143.16,2.73650064]
[1763185823584,86.73035487,143.24,143.21,3.43650064]
[1763185823798,109.38155487,143.24,143.21,3.43650064]
[1763185824014,109.38155487,143.24,143.22,0.7]
[1763185826399,109.38155487,143.24,143.22,3.43650064]
[1763185826803,109.38155487,143.24,143.23,0.7]
[1763185827483,109.38155487,143.24,143.21,0.7]
[1763185827675,109.38155487,143.24,143.21,3.43650064]
[1763185828201,109.38155487,143.24,143.22,0.7]
[1763185828497,109.38155487,143.24,143.22,3.43650064]
[1763185832118,109.38155487,143.24,143.22,0.7]
[1763185835588,112.11805551,143.24,143.21,0.7]
[1763185835896,2.73650064,143.23,143.19,0.7]
[1763185836094,2.73650064,143.23,143.2,0.7]
[1763185836708,2.95650064,143.22,143.18,0.7]
[1763185837004,2.73650064,143.21,143.17,0.7]
[1763185837209,2.95650064,143.21,143.18,0.7]
[1763185837717,2.73650064,143.19,143.14,0.7]
[1763185838022,2.73650064,143.18,143.14,3.43650064]
[1763185838191,2.73650064,143.18,143.15,0.7]
[1763185841012,2.73650064,143.2,143.16,2.73650064]
[1763185841301,86.73035487,143.21,143.17,2.73650064]
[1763185841499,86.73035487,143.21,143.18,3.43650064]
[1763185841914,86.73035487,143.21,143.19,0.7]
[1763185842409,89.46685551,143.21,143.17,0.7]
[1763185842611,89.68685551,143.21,143.17,0.7]
[1763185842989,89.68685551,143.21,143.15,2.73650064]
[1763185842990,2.95650064,143.2,143.15,2.73650064]
[1763185843192,2.73650064,143.19,143.14,2.73650064]
[1763185843389,89.46685551,143.19,143.15,0.7]
[1763185843593,89.68685551,143.19,143.15,0.7]
[1763185844405,89.46685551,143.19,143.15,3.43650064]
[1763185844902,89.46685551,143.19,143.16,0.7]
[1763185845086,86.73035487,143.19,143.16,0.7]
[1763185852218,89.46685551,143.19,143.16,0.7]
[1763185854520,89.68685551,143.19,143.16,0.7]